bitfinex-derivatives/quotes_ETHF0:USTF0_20250629
["timestamp","ask_amount","ask_price","bid_price","bid_amount"]
[1751219048711,1.34568,2434.7,2434.5,0.65701]
[1751219052312,0.65699,2434.6,2434.5,0.65701]
[1751219054615,2.80488979,2434.7,2434.5,0.65701]
[1751219055211,0.65699,2434.6,2434.5,0.65701]
[1751219057017,3.46185979,2434.7,2434.6,0.65699]
[1751219057212,1.66331471,2434.7,2434.6,27.53817979]
[1751219057417,3.86466,2435.1,2434.9,0.65691]
[1751219057618,0.97476868,2435.0,2434.9,2.77309979]
[1751219058013,0.97476868,2435.0,2434.9,3.46769979]
[1751219059818,0.97476868,2435.0,2434.9,5.83020875]
[1751219060212,0.97476868,2435.0,2434.9,9.03800875]
[1751219060411,0.7114,2435.4,2435.3,0.6568]
[1751219060613,0.7114,2435.4,2435.2,24.764]
[1751219060811,0.7114,2435.4,2435.3,1.3613]
[1751219061014,0.7114,2435.4,2435.3,0.7045]
[1751219061318,0.7114,2435.4,2435.3,1.3613]
[1751219061512,0.7114,2435.4,2435.3,0.7045]
[1751219061813,0.7114,2435.4,2435.3,1.3613]
[1751219067827,0.7114,2435.4,2435.3,0.7045]
[1751219068526,0.7114,2435.4,2435.3,1.3613]
[1751219069227,3.2078,2435.5,2435.4,0.65677]
[1751219069620,3.86455,2435.5,2435.3,1.36128]
[1751219070428,0.65677,2435.4,2435.3,0.7045]
[1751219070632,0.65677,2435.4,2435.2,24.764]
[1751219070816,6.22949875,2435.5,2435.2,24.758]
[1751219070817,1.3439,2435.3,2435.2,24.758]
[1751219072132,0.65687,2435.1,2434.9,3.2078]
[1751219072324,0.6871,2435.0,2434.9,27.9658]
[1751219073126,0.6871,2435.0,2434.9,28.62271]
[1751219073630,0.6871,2435.0,2434.9,3.86471]
[1751219073832,0.6871,2435.0,2434.9,27.9648]
[1751219074236,1.34398,2435.0,2434.9,27.9648]
[1751219074433,0.6871,2435.0,2434.9,27.9648]
[1751219074633,1.34398,2435.0,2434.9,27.9648]
[1751219075133,0.6871,2435.0,2434.9,27.9648]
[1751219075433,0.6871,2435.0,2434.9,28.62171]
[1751219075623,0.6871,2435.0,2434.9,25.41391]
[1751219075822,1.34398,2435.0,2434.9,24.757]
[1751219078233,0.65691,2434.9,2434.8,0.7294]
[1751219078429,0.65691,2434.9,2434.8,24.758]
[1751219082226,0.65693,2434.8,2434.7,8.76344392]
[1751219082431,0.65693,2434.8,2434.7,33.52144392]
[1751219082736,0.65693,2434.9,2434.7,34.17840392]
[1751219085236,1.344,2435.0,2434.8,0.65693]
[1751219085736,0.65691,2434.9,2434.7,34.17838392]
[1751219086938,0.65691,2434.9,2434.7,35.62928392]
[1751219087641,0.65693,2434.8,2434.7,35.62928392]
[1751219087837,0.65693,2434.8,2434.7,34.97234392]
[1751219088034,0.65693,2434.8,2434.7,33.52144392]
[1751219088236,0.65693,2434.8,2434.7,33.52018038]
[1751219089936,0.65693,2434.8,2434.7,8.76118038]
[1751219090140,0.65693,2434.8,2434.7,33.52018038]
[1751219090440,0.65693,2434.8,2434.7,31.06]
[1751219099048,0.65693,2434.9,2434.7,33.15436]
[1751219100450,1.344,2435.0,2434.8,0.65693]
[1751219100655,3.2078,2435.2,2434.9,24.76]
[1751219100946,1.62584606,2435.1,2435.0,0.7327]
[1751219101253,0.65688,2435.0,2434.9,24.76]
[1751219101453,1.62587606,2435.0,2434.9,24.76]
[1751219103346,0.65693,2434.8,2434.7,0.7327]
[1751219103644,3.02169875,2434.8,2434.7,24.76]
[1751219103851,3.67864875,2434.8,2434.7,24.76]
[1751219104050,4.34984875,2434.8,2434.7,24.76]
[1751219104251,5.31870911,2434.8,2434.7,24.76]
[1751219104451,0.65696,2434.7,2434.6,25.4748]
[1751219104651,1.62582036,2434.7,2434.6,25.4748]
[1751219104851,1.62582036,2434.7,2434.6,26.13179]
[1751219104852,0.96886036,2434.7,2434.6,26.13179]
[1751219105052,0.96886036,2434.7,2434.6,30.61548875]
[1751219105252,3.86474,2434.8,2434.6,30.66569875]
[1751219105553,3.2078,2434.8,2434.6,30.66569875]
[1751219105752,3.86473,2434.8,2434.6,31.32267875]
[1751219106653,0.65696,2434.7,2434.6,31.32267875]
[1751219107458,0.65696,2434.7,2434.6,30.66569875]
[1751219108258,0.65696,2434.7,2434.6,31.32268875]
[1751219108460,0.65695,2434.8,2434.6,31.32268875]
[1751219108761,0.65695,2434.8,2434.7,0.65696]
[1751219109057,1.62567429,2434.8,2434.7,2.10696]
[1751219109559,1.62567429,2434.8,2434.7,1.45]
[1751219110262,0.96872429,2434.8,2434.7,2.10696]
[1751219113459,1.62565429,2434.8,2434.7,2.10696]
[1751219114759,0.96872429,2434.8,2434.7,2.10696]
[1751219117753,0.96872429,2434.8,2434.7,4.22256596]
[1751219122166,0.96872429,2434.8,2434.7,2.10696]
[1751219128480,4.56745,2435.2,2435.0,0.65687]
[1751219128778,0.96945594,2435.1,2435.0,27.53247596]
[1751219129078,1.62630594,2435.1,2435.0,26.87560596]
[1751219132280,0.96945594,2435.1,2435.0,27.53248596]
[1751219133076,0.96945594,2435.1,2435.0,28.94908596]
[1751219134183,1.62630594,2435.1,2435.0,28.94908596]
[1751219134385,1.62630594,2435.1,2435.0,28.29220596]
[1751219134982,1.62630594,2435.1,2435.0,26.87560596]
[1751219136581,0.65688,2435.0,2434.9,6.301]
[1751219136775,1.62633594,2435.0,2434.9,31.059]
[1751219137577,1.62633594,2435.0,2434.9,31.71591]
[1751219138184,0.96945594,2435.0,2434.9,31.71591]
[1751219139883,1.62633594,2435.0,2434.9,31.71591]
[1751219140087,0.96945594,2435.0,2434.9,31.71591]
[1751219143388,1.62633594,2435.0,2434.9,31.71591]
[1751219143683,0.96945594,2435.0,2434.9,31.71591]
[1751219144087,1.62633594,2435.0,2434.9,31.71591]
[1751219144288,1.62633594,2435.0,2434.9,31.059]
[1751219145387,1.62633594,2435.0,2434.9,31.71591]
[1751219145582,0.96945594,2435.0,2434.9,31.71591]
[1751219150693,1.62633594,2435.0,2434.9,31.71591]
[1751219151694,0.96945594,2435.0,2434.9,31.71591]
[1751219152184,0.96945594,2435.0,2434.9,33.13421]
[1751219153890,3.922,2435.4,2435.3,0.6568]
[1751219153891,3.2078,2435.4,2435.3,0.6568]
[1751219154091,4.17652379,2435.4,2435.3,27.52940596]
[1751219154885,4.83329379,2435.4,2435.3,27.52940596]
[1751219155389,4.83329379,2435.4,2435.3,26.87260596]
[1751219155784,4.83329379,2435.4,2435.3,24.757]
[1751219156183,5.50279379,2435.4,2435.3,24.757]
[1751219156493,4.53407,2435.4,2435.3,24.757]
[1751219159094,1.32627,2435.4,2435.3,24.757]
[1751219162391,3.2078,2435.5,2435.3,24.757]
[1751219162694,3.2078,2435.5,2435.4,2.77237596]
[1751219162894,3.86454,2435.5,2435.4,2.11560596]
[1751219164704,3.2078,2435.5,2435.4,2.77237596]
[1751219164894,3.2078,2435.5,2435.4,4.16427596]
[1751219165400,3.2078,2435.5,2435.4,4.86777596]
[1751219169104,0.6567,2435.7,2435.5,0.65672]
[1751219169304,0.6567,2435.7,2435.6,2.11560596]
[1751219169597,4.58138,2435.8,2435.6,3.43901596]
[1751219170000,0.65669,2435.7,2435.6,28.19201596]
[1751219170201,3.9247,2435.8,2435.6,27.53530596]
[1751219170403,4.58138,2435.8,2435.6,28.19200596]
[1751219172109,0.65669,2435.7,2435.6,28.19200596]
[1751219172709,0.65669,2435.7,2435.6,27.53530596]
[1751219173311,1.6253572,2435.7,2435.6,27.53530596]
[1751219175607,0.9686672,2435.7,2435.6,28.19202596]
[1751219175813,0.9686672,2435.7,2435.6,29.59562596]
[1751219176211,3.2078,2435.8,2435.7,0.65669]
[1751219176408,3.2078,2435.8,2435.7,2.06029]
[1751219177813,0.65659,2436.1,2435.7,4.42292652]
[1751219178014,0.65658,2436.1,2436.0,0.6566]
[1751219178313,1.62440282,2436.1,2435.9,0.65662]
[1751219178514,0.96782282,2436.0,2435.9,2.80552]
[1751219179213,0.96782282,2436.0,2435.9,5.82484652]
[1751219181509,1.62443282,2436.0,2435.9,5.82484652]
[1751219181816,1.62443282,2436.0,2435.9,5.16822652]
[1751219182512,0.65666,2435.8,2435.6,10.16251]
[1751219182713,3.71652652,2435.9,2435.6,3.9025]
[1751219182913,3.71652652,2435.9,2435.7,24.747]
[1751219182914,1.6240685,2435.8,2435.7,24.747]
[1751219184815,1.6240685,2435.8,2435.6,3.2078]
[1751219185022,0.6972,2435.9,2435.6,29.4045]
[1751219185220,0.96764512,2435.8,2435.7,0.65668]
[1751219185423,1.62430512,2435.8,2435.7,0.65668]
[1751219185817,0.65669,2435.7,2435.6,29.4045]
[1751219186723,0.65669,2435.7,2435.6,27.9538]
[1751219187020,0.65669,2435.7,2435.6,24.746]
[1751219187419,3.01932652,2435.8,2435.4,6.9876]
[1751219187626,0.65674,2435.5,2435.4,31.043]
[1751219188920,0.65677,2435.4,2435.3,5.66490934]
[1751219189126,3.67609652,2435.4,2435.3,3.2078]
[1751219189322,0.65677,2435.4,2435.3,27.9538]
[1751219190031,3.67609652,2435.4,2435.3,3.2078]
[1751219190231,0.65683,2435.2,2435.1,24.747]
[1751219190635,0.6949,2435.9,2435.1,37.57790934]
[1751219190831,1.35155,2435.9,2435.8,3.01932652]
[1751219191132,1.35155,2435.9,2435.7,24.833]
[1751219191429,1.35155,2435.9,2435.7,25.5344]
[1751219191430,0.65666,2435.8,2435.7,25.5344]
[1751219192425,0.6949,2435.9,2435.7,25.5344]
[1751219192722,1.35155,2435.9,2435.7,25.5344]
[1751219193629,0.65666,2435.8,2435.7,25.5344]
[1751219194029,1.35156,2435.9,2435.7,25.5344]
[1751219194231,0.65666,2435.8,2435.7,25.5344]
[1751219194418,0.6949,2435.9,2435.7,25.5344]
[1751219194625,0.65666,2435.8,2435.7,24.833]
[1751219194826,0.65672,2435.6,2435.5,7.7406]
[1751219195029,0.65672,2435.6,2435.5,25.5044]
[1751219195432,1.33422,2435.6,2435.5,25.5044]
[1751219195833,1.33422,2435.6,2435.5,24.831]
[1751219197030,0.65677,2435.4,2435.3,6.345]
[1751219197332,0.65676,2435.5,2435.3,31.8348]
[1751219198923,1.33423,2435.6,2435.4,0.65676]
[1751219200533,1.33423,2435.6,2435.4,0.65677]
[1751219200734,1.33423,2435.6,2435.3,32.644]
[1751219200929,0.6775,2435.6,2435.4,0.65676]
[1751219201131,1.33422,2435.6,2435.4,0.65676]
[1751219201935,1.33422,2435.6,2435.4,3.67608652]
[1751219202534,0.96489748,2435.5,2435.4,3.67608652]
[1751219203335,1.62164748,2435.5,2435.4,3.01932652]
[1751219203538,0.96489748,2435.5,2435.4,3.67609652]
[1751219203737,1.62164748,2435.5,2435.4,3.01932652]
[1751219207340,1.62164748,2435.5,2435.4,3.67609652]
[1751219207541,0.96489748,2435.5,2435.4,3.67609652]
[1751219207942,0.96489748,2435.5,2435.4,5.13479652]
[1751219208943,4.54203,2435.6,2435.4,5.13479652]
[1751219209142,4.54203,2435.6,2435.5,25.5286]
[1751219209444,5.50497253,2435.6,2435.5,25.5286]
[1751219212739,5.50497253,2435.6,2435.5,24.822]
[1751219214243,6.49009253,2435.6,2435.2,2.45710934]
[1751219214545,6.49009253,2435.6,2435.2,24.815]
[1751219214546,3.8646,2435.3,2435.2,24.815]
[1751219216747,4.82770046,2435.3,2435.2,24.815]
[1751219220848,4.82770046,2435.3,2435.2,27.83432652]
[1751219223850,1.61990046,2435.3,2435.2,27.83432652]
[1751219224753,1.61990046,2435.3,2435.2,29.17992652]
[1751219226453,0.96310046,2435.3,2435.2,29.83675652]
[1751219226651,0.96310046,2435.3,2435.2,33.04455652]
[1751219227251,0.65673,2435.6,2435.2,32.38772652]
[1751219227451,0.96335877,2435.5,2435.4,0.65676]
[1751219227655,0.96335877,2435.5,2435.4,28.49108652]
[1751219227953,0.96335877,2435.5,2435.4,29.21728652]
[1751219228152,0.96335877,2435.5,2435.4,30.60728652]
[1751219228556,0.65673,2435.6,2435.4,30.60728652]
[1751219228947,0.65675,2435.5,2435.4,29.95052652]
[1751219229961,0.65674,2435.6,2435.4,30.60729652]
[1751219230159,0.65675,2435.5,2435.4,30.60729652]
[1751219230559,0.65673,2435.6,2435.4,30.60729652]
[1751219231558,0.65673,2435.6,2435.5,1.4408]
[1751219232048,1.62012946,2435.6,2435.5,1.4408]
[1751219238861,1.62012946,2435.6,2435.5,2.09755]
[1751219239358,0.96339946,2435.6,2435.5,2.09755]
[1751219239665,0.65661,2436.0,2435.5,4.6486]
[1751219239864,0.6566,2436.1,2435.9,3.01932652]
[1751219240058,0.6566,2436.1,2436.0,0.6746]
[1751219240059,0.65658,2436.1,2436.0,0.6746]
[1751219240258,1.61952752,2436.1,2436.0,0.6746]
[1751219243163,0.96294752,2436.1,2436.0,0.6746]
[1751219243365,0.96294752,2436.1,2436.0,1.33121]
[1751219245769,0.96294752,2436.1,2436.0,2.78851]
[1751219247463,1.61952752,2436.1,2436.0,2.1319]
[1751219249666,1.61952752,2436.1,2436.0,0.6746]
[1751219254068,0.96294752,2436.1,2436.0,2.046]
[1751219254270,0.96294752,2436.1,2436.0,2.70261]
[1751219255275,1.61952752,2436.1,2436.0,2.046]
[1751219255768,1.61952752,2436.1,2436.0,0.6746]
[1751219259164,1.61952752,2436.1,2436.0,2.0793]
[1751219259569,0.96294752,2436.1,2436.0,2.73591]
[1751219261275,3.2078,2436.3,2436.2,0.65656]
[1751219261471,4.17008593,2436.3,2436.2,28.46688652]
[1751219261679,4.82661593,2436.3,2436.2,28.46688652]
[1751219262281,4.82661593,2436.3,2436.2,27.81032652]
[1751219263579,4.82661593,2436.3,2436.2,24.791]
[1751219269885,1.61881593,2436.3,2436.2,24.791]
[1751219270087,4.82661593,2436.3,2436.2,24.791]
[1751219270884,1.61881593,2436.3,2436.2,24.791]
[1751219271184,4.82661593,2436.3,2436.2,24.791]
[1751219279998,0.65658,2436.1,2436.0,3.69392652]
[1751219280198,0.65658,2436.1,2436.0,34.78092652]
[1751219280396,1.61886593,2436.1,2436.0,6.9956]
[1751219284404,1.61886593,2436.1,2436.0,10.01492652]
[1751219287008,1.61886593,2436.1,2436.0,12.04813652]
[1751219287210,0.96228593,2436.1,2436.0,12.04813652]
[1751219292313,1.61886593,2436.1,2436.0,12.04813652]
[1751219292504,1.61886593,2436.1,2436.0,11.39152652]
[1751219294412,1.61886593,2436.1,2436.0,12.04813652]
[1751219295108,0.96228593,2436.1,2436.0,12.04813652]
[1751219298509,0.96228593,2436.1,2436.0,9.02881]
[1751219298711,1.61886593,2436.1,2436.0,5.07052652]
[1751219298917,1.61886593,2436.1,2436.0,36.14552652]
[1751219300319,0.96228593,2436.1,2436.0,36.80213652]
[1751219302113,1.61886593,2436.1,2436.0,36.80213652]
[1751219302717,0.96228593,2436.1,2436.0,36.80213652]
[1751219303017,1.61886593,2436.1,2436.0,36.14552652]
[1751219303218,1.61886593,2436.1,2436.0,36.80213652]
[1751219303420,0.96228593,2436.1,2436.0,36.14552652]
[1751219303711,0.65658,2436.1,2436.0,36.14552652]
[1751219303914,1.61886593,2436.1,2436.0,36.14552652]
[1751219307629,1.61886593,2436.1,2436.0,36.80213652]
[1751219308221,0.96228593,2436.1,2436.0,39.82146304]
[1751219308522,0.96438011,2436.2,2436.1,0.65658]
[1751219308722,0.96443098,2436.2,2436.1,4.47722652]
[1751219309027,0.96443098,2436.2,2436.1,5.13380652]
[1751219314929,1.62099098,2436.2,2436.1,31.068]
[1751219315135,0.65658,2436.1,2436.0,0.6746]
[1751219315429,2.35251098,2436.1,2436.0,31.068]
[1751219317030,2.35205591,2436.1,2436.0,31.068]
[1751219317224,2.35205591,2436.1,2436.0,33.52510934]
[1751219317631,2.35205591,2436.1,2436.0,31.067]
[1751219319132,2.35205591,2436.1,2436.0,34.08632652]
[1751219321234,1.69547591,2436.1,2436.0,34.74293652]
[1751219321734,0.7315,2436.1,2436.0,37.20004586]
[1751219323035,1.38808,2436.1,2436.0,37.20004586]
[1751219323533,0.7315,2436.1,2436.0,37.20004586]
[1751219325143,1.38808,2436.1,2436.0,37.20004586]
[1751219325540,1.38808,2436.1,2436.0,36.54343586]
[1751219326240,1.38808,2436.1,2436.0,37.20004586]
[1751219327146,0.7315,2436.1,2436.0,37.20004586]
[1751219327341,0.7315,2436.1,2436.0,34.74293652]
[1751219327342,1.69591461,2436.1,2436.0,34.74293652]
[1751219329445,0.96441461,2436.1,2436.0,37.76226304]
[1751219329736,3.2078,2436.4,2436.3,0.65653]
[1751219329940,4.17228617,2436.4,2436.3,34.73685652]
[1751219330744,0.96448617,2436.4,2436.3,34.73685652]
[1751219340354,1.62098617,2436.4,2436.3,34.73685652]
[1751219340554,1.62098617,2436.4,2436.3,34.08032652]
[1751219341352,0.96448617,2436.4,2436.3,34.73685652]
[1751219343055,3.2078,2436.7,2436.6,0.65645]
[1751219343352,3.2078,2436.7,2436.6,28.43077652]
[1751219347657,2.44749876,2437.0,2436.9,0.65637]
[1751219347954,7.01162876,2437.1,2436.9,3.67569652]
[1751219348752,2.44749876,2437.0,2436.9,3.67569652]
[1751219348952,7.01162876,2437.1,2436.9,3.67569652]
[1751219350260,6.35529876,2437.1,2436.9,3.67567652]
[1751219350557,7.01162876,2437.1,2437.0,0.65634]
[1751219350758,7.01162876,2437.1,2436.9,3.67567652]
[1751219352561,6.35529876,2437.1,2437.0,0.65634]
[1751219352858,7.01160876,2437.1,2436.9,3.67567652]
[1751219353254,4.56411,2437.1,2436.9,3.67567652]
[1751219353457,0.65634,2437.0,2436.9,3.01932652]
[1751219355156,1.61219022,2437.0,2436.9,3.01932652]
[1751219355659,0.95585022,2437.0,2436.9,3.01932652]
[1751219355858,1.61219022,2437.0,2436.9,3.01932652]
[1751219356055,1.61219022,2437.0,2436.8,25.41038]
[1751219356056,0.65639,2436.8,2436.7,3.70932652]
[1751219356252,0.65639,2436.8,2436.7,34.07332652]
[1751219356562,0.65645,2436.6,2436.5,27.9588]
[1751219356760,0.65645,2436.6,2436.5,3.2078]
[1751219358566,0.65648,2436.5,2436.4,27.20810934]
[1751219359860,0.65648,2436.5,2436.4,24.751]
[1751219360559,3.01932652,2436.6,2436.4,2.45603889]
[1751219360767,2.09968,2436.5,2436.4,2.45603889]
[1751219361068,0.65653,2436.3,2436.2,27.20703889]
[1751219361866,0.65653,2436.3,2436.2,24.751]
[1751219362065,0.65653,2436.3,2436.2,27.20703889]
[1751219362367,0.65653,2436.3,2436.2,2.45603889]
[1751219368071,0.65656,2436.2,2436.1,25.4248]
[1751219370270,1.33912,2436.4,2436.1,26.08138]
[1751219370471,0.9557643,2436.3,2436.2,3.01932652]
[1751219371274,1.6122943,2436.3,2436.2,3.01932652]
[1751219385686,1.6122943,2436.3,2436.2,4.41102652]
[1751219386889,1.6122943,2436.3,2436.2,1.3917]
[1751219387088,0.65656,2436.2,2436.1,28.44712652]
[1751219390289,1.61693342,2436.2,2436.1,28.44712652]
[1751219394193,1.61693342,2436.2,2436.1,25.4278]
[1751219399299,0.65661,2436.0,2435.9,5.47536541]
[1751219399500,0.65661,2436.0,2435.9,37.20416541]
[1751219399699,1.61858149,2436.0,2435.9,37.20416541]
[1751219400192,1.61858149,2436.0,2435.9,12.45016541]
[1751219400389,1.61858149,2436.0,2435.9,37.20416541]
[1751219401396,1.61858149,2436.0,2435.9,3.12783889]
[1751219401599,1.61858149,2436.0,2435.9,34.18483889]
[1751219402695,1.61858149,2436.0,2435.9,9.43083889]
[1751219402893,1.61858149,2436.0,2435.9,34.18483889]
[1751219403093,1.61858149,2436.0,2435.9,31.7288]
[1751219403799,0.96197149,2436.0,2435.9,31.7288]
[1751219403989,0.96197149,2436.0,2435.9,25.4258]
[1751219404604,1.61858149,2436.0,2435.9,25.4258]
[1751219405201,0.96197149,2436.0,2435.9,25.4258]
[1751219405697,0.96197149,2436.0,2435.9,26.7497]
[1751219406297,1.61858149,2436.0,2435.9,26.7497]
[1751219408105,0.96197149,2436.0,2435.9,27.40634]
[1751219409412,1.61858149,2436.0,2435.9,27.40634]
[1751219409606,1.61858149,2436.0,2435.9,26.7497]
[1751219410404,1.61858149,2436.0,2435.9,1.9957]
[1751219410608,0.96197149,2436.0,2435.9,27.40634]
[1751219414201,1.61858149,2436.0,2435.9,27.40634]
[1751219414398,1.61858149,2436.0,2435.9,26.7497]
[1751219415311,0.96197149,2436.0,2435.9,27.40634]
[1751219417910,0.96197149,2436.0,2435.9,29.51938003]
[1751219418912,0.96197149,2436.0,2435.9,26.7497]
[1751219419106,0.96197149,2436.0,2435.9,29.51938003]
[1751219419303,0.65659,2436.1,2435.9,31.97541892]
[1751219419609,0.65659,2436.1,2435.9,31.31877892]
[1751219419809,1.61868875,2436.0,2435.9,28.86274003]
[1751219421517,1.61868875,2436.0,2435.9,27.53884003]
[1751219421814,1.61868875,2436.0,2435.9,28.44519287]
[1751219423111,0.65664,2435.9,2435.8,9.41953889]
[1751219423309,0.65664,2435.9,2435.8,34.17253889]
[1751219423310,1.61899028,2435.9,2435.8,34.17253889]
[1751219423615,1.61899028,2435.9,2435.8,31.7165]
[1751219424418,0.96235028,2435.9,2435.8,31.7165]
[1751219424609,1.61899028,2435.9,2435.8,31.7165]
[1751219425012,1.61899028,2435.9,2435.8,31.055]
[1751219425719,0.65666,2435.8,2435.7,9.34953176]
[1751219425923,0.65666,2435.8,2435.7,40.40453176]
[1751219427519,0.65666,2435.8,2435.7,15.65153176]
[1751219427816,0.65666,2435.8,2435.7,40.40453176]
[1751219428823,1.61874805,2435.8,2435.7,37.94849287]
[1751219430025,1.61874805,2435.8,2435.7,3.01939287]
[1751219430216,1.61874805,2435.8,2435.7,27.77239287]
[1751219431820,0.96208805,2435.8,2435.7,27.77239287]
[1751219432019,0.96208805,2435.8,2435.7,28.43349287]
[1751219433024,0.96208805,2435.8,2435.7,29.09018287]
[1751219433826,0.96208805,2435.8,2435.7,30.43648287]
[1751219434030,1.61874805,2435.8,2435.7,29.77979287]
[1751219434425,1.61874805,2435.8,2435.7,30.43648287]
[1751219437225,1.61874805,2435.8,2435.7,29.77979287]
[1751219443735,1.61874805,2435.8,2435.7,28.87417482]
[1751219444036,1.61874805,2435.8,2435.7,26.7604]
[1751219444237,1.61874805,2435.8,2435.7,27.52787482]
[1751219445237,1.61874805,2435.8,2435.7,2.11377482]
[1751219445434,1.61874805,2435.8,2435.7,26.86677482]
[1751219446033,1.61874805,2435.8,2435.7,2.11377482]
[1751219446235,0.65669,2435.7,2435.6,8.41577482]
[1751219446537,2.28387805,2435.7,2435.6,33.16877482]
[1751219447138,2.28387805,2435.7,2435.6,8.41577482]
[1751219447340,1.62718805,2435.7,2435.6,33.16877482]
[1751219447539,2.28387805,2435.7,2435.6,33.16877482]
[1751219449237,2.28387805,2435.7,2435.6,26.86677482]
[1751219456244,1.62718805,2435.7,2435.6,27.52349482]
[1751219456439,1.61877805,2435.7,2435.6,28.91989482]
[1751219458448,0.96208805,2435.7,2435.6,28.91989482]
[1751219467759,0.96208805,2435.7,2435.6,29.82526348]
[1751219469460,0.96208805,2435.7,2435.6,33.03306348]
[1751219474064,0.96208805,2435.7,2435.6,29.82526348]
[1751219474260,0.96208805,2435.7,2435.6,33.03306348]
[1751219475262,0.96208805,2435.7,2435.6,35.48910237]
[1751219478363,0.6977,2436.1,2436.0,0.65661]
[1751219478563,1.6578764,2436.1,2436.0,28.42475348]
[1751219479070,1.6578764,2436.1,2436.0,29.15085348]
[1751219479470,2.3144564,2436.1,2436.0,29.15085348]
[1751219480467,1.6578764,2436.1,2436.0,29.15085348]
[1751219480665,2.3144564,2436.1,2436.0,29.15085348]
[1751219482375,2.3144564,2436.1,2436.0,28.49424348]
[1751219482672,2.3144564,2436.1,2436.0,27.76814348]
[1751219485674,0.65664,2435.9,2435.8,6.299]
[1751219485974,0.65666,2435.8,2435.7,8.75503889]
[1751219486174,2.05996,2435.8,2435.7,33.50103889]
[1751219486368,2.05996,2435.8,2435.7,31.045]
[1751219487270,3.39896,2435.8,2435.7,31.045]
[1751219488867,4.35839353,2435.8,2435.7,31.045]
[1751219490371,4.35839353,2435.8,2435.7,34.06414348]
[1751219492079,3.70173353,2435.8,2435.7,34.72083348]
[1751219492278,4.35839353,2435.8,2435.7,34.72083348]
[1751219492680,4.35839353,2435.8,2435.7,34.06414348]
[1751219493476,3.01939353,2435.8,2435.7,34.72083348]
[1751219493674,2.36273353,2435.8,2435.7,34.72083348]
[1751219498380,3.01939353,2435.8,2435.7,34.72083348]
[1751219501483,3.01939353,2435.8,2435.7,34.06414348]
[1751219502980,3.01939353,2435.8,2435.7,3.01914348]
[1751219503186,3.01939353,2435.8,2435.7,27.76514348]
[1751219503980,3.01939353,2435.8,2435.7,28.42183348]
[1751219504182,2.36273353,2435.8,2435.7,28.42183348]
[1751219504383,2.36273353,2435.8,2435.7,29.08863348]
[1751219504784,0.95943353,2435.8,2435.7,29.08863348]
[1751219504980,0.95943353,2435.8,2435.7,33.63993348]
[1751219505784,0.95943353,2435.8,2435.7,32.73387381]
[1751219507793,0.95943353,2435.8,2435.7,33.63966488]
[1751219509491,0.65658,2436.1,2435.9,0.65662]
[1751219509691,0.65658,2436.1,2436.0,24.744]
[1751219509897,1.61665967,2436.1,2436.0,25.418]
[1751219510697,1.61665967,2436.1,2436.0,26.07461]
[1751219510895,1.61665967,2436.1,2436.0,28.43687488]
[1751219511595,1.61665967,2436.1,2436.0,29.09348488]
[1751219512992,0.96007967,2436.1,2436.0,29.09348488]
[1751219514096,0.96007967,2436.1,2436.0,30.44728488]
[1751219514690,0.96007967,2436.1,2436.0,33.46615976]
[1751219514991,3.2078,2436.6,2436.5,0.65648]
[1751219515194,3.2078,2436.6,2436.5,28.41735488]
[1751219516095,3.86425,2436.6,2436.5,27.76087488]
[1751219516296,3.2078,2436.6,2436.5,28.41735488]
[1751219516493,3.86425,2436.6,2436.5,27.76087488]
[1751219520198,3.2078,2436.6,2436.5,28.41735488]
[1751219520600,3.86415,2437.0,2436.8,0.65637]
[1751219520898,3.86415,2437.0,2436.9,3.01887488]
[1751219522702,0.65635,2437.0,2436.9,3.01887488]
[1751219525401,2.05853,2437.1,2436.9,3.67524488]
[1751219525800,0.65634,2437.0,2436.9,3.01887488]
[1751219526898,0.65626,2437.4,2436.9,9.31387488]
[1751219527097,0.65626,2437.4,2437.3,3.01887488]
[1751219527397,1.36972,2437.5,2437.3,3.67512488]
[1751219527704,0.65623,2437.4,2437.3,3.01887488]
[1751219529196,0.65623,2437.4,2437.3,3.73637488]
[1751219530507,0.65623,2437.4,2437.3,3.01887488]
[1751219531608,3.73237488,2437.5,2437.1,3.2078]
[1751219531811,0.65629,2437.2,2437.1,3.2078]
[1751219532005,0.65628,2437.3,2437.1,30.95767488]
[1751219532303,0.65628,2437.3,2437.1,32.31198488]
[1751219532509,0.65628,2437.3,2437.1,33.76298488]
[1751219533200,0.7135,2437.5,2437.1,33.10667488]
[1751219533402,0.7135,2437.5,2437.4,3.01887488]
[1751219533703,1.36972,2437.5,2437.4,3.01887488]
[1751219534609,3.2078,2437.6,2437.4,27.74987488]
[1751219534906,0.65621,2437.5,2437.4,27.74987488]
[1751219535308,0.65621,2437.5,2437.4,28.45707488]
[1751219552135,1.6092342,2437.5,2437.4,28.45707488]
[1751219557735,1.6092342,2437.5,2437.4,29.11330488]
[1751219559536,0.9530242,2437.5,2437.4,29.11330488]
[1751219560633,0.65611,2437.9,2437.4,29.84447488]
[1751219560838,0.65613,2437.8,2437.7,3.01887488]
[1751219561036,0.65612,2437.9,2437.7,28.39901488]
[1751219561641,0.65613,2437.8,2437.7,27.74287488]
[1751219561838,0.6561,2437.9,2437.7,28.39901488]
[1751219562032,0.6561,2437.9,2437.7,29.78641488]
[1751219562232,0.65609,2438.0,2437.8,0.65613]
[1751219562437,0.65607,2438.0,2437.8,0.65613]
[1751219562637,0.6561,2437.9,2437.7,29.78640488]
[1751219562835,0.6561,2437.9,2437.7,29.78641488]
[1751219563144,0.65609,2438.0,2437.7,29.78641488]
[1751219563344,0.65609,2438.0,2437.9,3.01887488]
[1751219563537,1.33606,2438.1,2437.9,28.39897488]
[1751219563742,0.65607,2438.0,2437.9,27.74287488]
[1751219563939,0.65607,2438.0,2437.9,29.18677488]
[1751219564140,1.33606,2438.1,2437.9,29.84287488]
[1751219564537,0.65607,2438.0,2437.9,29.84287488]
[1751219564840,0.68,2438.1,2437.9,29.18677488]
[1751219565046,0.65607,2438.0,2437.9,29.18677488]
[1751219565835,1.33606,2438.1,2437.9,29.84287488]
[1751219566239,0.68,2438.1,2437.9,29.84287488]
[1751219566446,1.33605,2438.1,2437.9,29.84287488]
[1751219566840,0.65607,2438.0,2437.9,29.18677488]
[1751219568842,0.65607,2438.0,2437.9,27.74287488]
[1751219569044,0.65613,2437.8,2437.7,3.01887488]